Cogmind - Beta 14 @@@ ROGUE MODE // 2025.03.29 @ 22:47:31 Player: Jarnogs Result: Destroyed by G-50 Soldier with Heavy Laser Performance ------------- Evolutions (2) 1000 Regions Visited (3) 600 Robots Destroyed (24) 120 Value Destroyed (810) 810 Prototype IDs (2) 40 Alien Tech Used (0) 0 Bonus (0) 0 TOTAL SCORE: 2570 Bonus ------- None Cogmind --------- Core Integrity 0/550 Matter 241/300 Energy 99/100 System Corruption 0% Temperature Cool (36) Movement Core (50) Location -8/Materials Parts ------- > --- POWER (1) -------- (None) > --- PROPULSION (4) --- (None) > --- UTILITY (3) ------ Advanced Visual Processing Unit > --- WEAPON (3) ------- Hammer > --- INVENTORY (5) ---- Improved Terrain Scan Processor Core Shielding Datajack Peak State ------------ > --- POWER ------------ Reinforced Ion Engine > --- PROPULSION ------- Aluminum Leg Aluminum Leg Aluminum Leg Aluminum Leg > --- UTILITY ---------- Small Storage Unit Advanced Visual Processing Unit Targeting Computer > --- WEAPON ----------- Heavy EM Shotgun Beam Rifle Shotgun > --- INVENTORY -------- Nuclear Core Improved Terrain Scan Processor Core Shielding Mini Grenade Launcher Datajack [Rating: 20] Favorites ----------- Power Ion Engine Engine Ion Engine Power Core Nuclear Core Propulsion Aluminum Leg Leg Aluminum Leg Utility Small Storage Unit Device Sensor Array Storage Small Storage Unit Processor Advanced Visual Processing Unit Weapon Shotgun Energy Gun Medium Laser Energy Cannon Heavy Particle Cannon Ballistic Gun Shotgun Launcher Mini Grenade Launcher Impact Weapon Hammer Build | -11 -10 -9 -8 ------- Run | Yrd Mat Mat Mat Slots Evolved 4 | . . 2 2 Power . | . . . . Propulsion 2 | . . 2 . Utility 1 | . . . 1 Weapon 1 | . . . 1 Parts Attached 26 | 6 1 8 11 Power 3 | 1 . 1 1 Engine 2 | 1 . 1 . Core 1 | . . . 1 Reactor . | . . . . Propulsion 9 | 2 . 4 3 Treads . | . . . . Leg 9 | 2 . 4 3 Wheel . | . . . . Hover . | . . . . Flight . | . . . . Utility 4 | 1 1 . 2 Device 1 | . 1 . . Storage 1 | 1 . . . Processor 2 | . . . 2 Hackware . | . . . . Protection . | . . . . Artifact . | . . . . Weapon 10 | 2 . 3 5 Energy Gun 3 | 1 . 1 1 Energy Cannon 1 | . . . 1 Ballistic Gun 4 | 1 . 2 1 Ballistic Cannon . | . . . . Launcher 1 | . . . 1 Special Weapon . | . . . . Impact Weapon 1 | . . . 1 Slashing Weapon . | . . . . Piercing Weapon . | . . . . Special Melee Weapon . | . . . . Unidentified Prototypes 1 | . . . 1 Parts Lost 19 | . . 3 16 Power 2 | . . . 2 Propulsion 7 | . . 2 5 Utility 3 | . . . 3 Weapon 7 | . . 1 6 Highest Loss Streak 15 | . . 2 15 To Critical Strikes . | . . . . Average Slot Usage (%) 94 | . 97 96 81 Engine 11 | . 14 11 6 Leg 34 | . 28 41 27 Device 9 | . 11 11 2 Storage 11 | . 14 11 8 Processor 2 | . . . 14 Energy Gun 7 | . 14 . 12 Ballistic Gun 16 | . 14 21 7 Peak Build Rating 20 | 6 7 13 20 Average Rating 10 | 4 6 12 16 On Entrance 6 | . 6 7 13 Naked Turns . | . . . . Heaviest Build 25 | 14 15 22 25 Greatest Support 40 | 20 20 40 40 Greatest Overweight (x) 7 | . . 1 7 Average Overweight (x) . | . . . . Largest Inventory Capacity 8 | 8 8 8 8 Average Capacity 7 | 6 8 8 7 Most Carried 8 | 5 4 8 8 Average Carried 5 | 1 3 6 5 Final Capacity 8 | 8 8 8 5 Final Carried 6 | 2 4 6 3 Class Distribution -------------------- 50% | Mutant 41% | Scavenger-Mutant 8% | Scavenger-Gunner Dominant Class ---------------- Mutant | -10/Materials Scavenger-Mutant | -9/Materials Scavenger-Gunner | -8/Materials Resources | -11 -10 -9 -8 ----------- Run | Yrd Mat Mat Mat Matter Collected 789 | 219 86 370 114 Remotely . | . . . . Salvage Created 875 | . 105 508 262 Parts 58 | . 4 41 13 Haulers Intercepted . | . . . . Recyclers Shooed 1 | . 1 . . Parts Field Recycled . | . . . . Retrieved Matter . | . . . . Parts Self-Destructed . | . . . . Prevented . | . . . . Kills | -11 -10 -9 -8 ------- Run | Yrd Mat Mat Mat Combat Hostiles Destroyed 22 | . 2 15 5 Guns 22 | . 2 15 5 Classes Destroyed 7 | . 2 5 . Worker 1 | . . 1 . Watcher 1 | . 1 . . Swarmer 4 | . . 4 . Grunt 10 | . 2 5 3 Brawler 2 | . . 1 1 Duelist 1 | . . 1 . Sentry 5 | . . 4 1 Best Kill Streak 5 | . 1 5 4 Combat Bots Only 5 | . 1 5 4 Max Kills in Single Turn 2 | . 1 2 1 Gunslinging . | . . . . Exploded . | . . . . Melee . | . . . . Uniques/NPCs Destroyed . | . . . . Combat | -11 -10 -9 -8 -------- Run | Yrd Mat Mat Mat Hostile Shots Fired 186 | . 8 71 107 Missed 42 | . 2 21 19 Damage Taken 2323 | . 68 652 1603 Core 616 | . . 55 561 Absorbed by Shields . | . . . . Core Remaining (%) 95 | 100 100 86 . Volleys Fired 79 | . 14 39 26 Largest 3 | . 2 2 3 Hottest 129 | . 70 70 129 Shots Fired 152 | . 27 77 48 Gun 147 | . 27 77 43 Cannon 5 | . . . 5 Launcher . | . . . . Special . | . . . . Kinetic 104 | . 14 76 14 Thermal 40 | . 13 1 26 Explosive . | . . . . Electromagnetic 8 | . . . 8 Robot Hit Streak 10 | . 7 6 10 Robot Miss Streak 5 | . 3 5 3 Penetration Max . | . . . . Secondary Targets 5 | . . 2 3 Max Gunslinging Chain 1 | . . 1 1 Shots Hit Robots 113 | . 12 59 42 Core Hits 51 | . 6 29 16 Critical Kills . | . . . . Critical Parts Destroyed 1 | . . . 1 Critical Strikes 3 | . 1 . 2 Burn 2 | . 1 . 1 Destroy 1 | . . . 1 Melee Attacks 5 | . . . 5 Impact 5 | . . . 5 Slashing . | . . . . Piercing . | . . . . Sneak Attacks 1 | . . . 1 Combat Hostiles . | . . . . Follow-up Attacks . | . . . . Damage Inflicted 1759 | . 156 822 781 Guns 1498 | . 156 822 520 Cannons 125 | . . . 125 Explosions . | . . . . Melee 136 | . . . 136 Ramming . | . . . . Kinetic 1030 | . 55 822 153 Thermal 457 | . 101 . 356 Explosive . | . . . . Electromagnetic 136 | . . . 136 Impact 136 | . . . 136 Slashing . | . . . . Piercing . | . . . . Highest Corruption . | . . . . Average Corruption . | . . . . Corruption Purged . | . . . . Corruption Blocked . | . . . . Overload Shots . | . . . . Overflow Damage 31 | . . . 31 Projectiles . | . . . . Explosions 31 | . . . 31 Melee . | . . . . Knockbacks . | . . . . Impact . | . . . . Kinetic . | . . . . Secondary . | . . . . Self-Inflicted Damage 168 | . . . 168 Shots 2 | . . . 2 Rammed . | . . . . Targets Rammed . | . . . . Kicked . | . . . . Crushed . | . . . . Highest Temperature 439 | . 60 23 439 Average Temperature 98 | . 20 5 158 Received Heat Transfer 1122 | . 36 231 855 Effects 8 | . . . 8 Shutdowns 2 | . . . 2 Energy Bleed 1 | . . . 1 Interference 1 | . . . 1 Matter Decay 2 | . . . 2 Short Circuit 2 | . . . 2 Siege Activations . | . . . . Robots Corrupted . | . . . . Combat Hostiles . | . . . . Parts Fried . | . . . . Impact Corruptions . | . . . . Robots Melted . | . . . . Combat Hostiles . | . . . . Parts Melted 3 | . 1 . 2 Heat Transferred 1221 | . 370 . 851 Parts Sabotaged . | . . . . Parts Stolen . | . . . . Parts Stripped . | . . . . Power Chain Reactions . | . . . . Alert | -11 -10 -9 -8 ------- Run | Yrd Mat Mat Mat Peak Influence 300 | . 72 300 264 Initial 126 | . . . 126 Average 88 | . 27 101 202 Maximum Alert Level 1 | . . 1 1 Low Security (%) 86 | 100 100 92 34 Level 1 13 | . . 7 65 Level 2 . | . . . . Level 3 . | . . . . Level 4 . | . . . . Level 5 . | . . . . High Security . | . . . . Max Security . | . . . . Squads Dispatched 4 | . 3 1 . Investigation . | . . . . Extermination . | . . . . Reinforcement 4 | . 3 1 . Assault . | . . . . Garrison . | . . . . Intercept . | . . . . Searches Triggered . | . . . . Construction Impeded . | . . . . Haulers Reinforced . | . . . . Active Scanning Responses . | . . . . Cargo Convoy Interrupts . | . . . . Stealth | -11 -10 -9 -8 --------- Run | Yrd Mat Mat Mat Distress Signals 1 | . . . 1 Communications Jammed . | . . . . Distress Signals . | . . . . Times Spotted 33 | . 6 15 12 Peak Tracking Total 8 | . 3 4 8 Tactical Retreats . | . . . . Traps | -11 -10 -9 -8 ------- Run | Yrd Mat Mat Mat Traps Triggered 1 | . . . 1 Indirectly . | . . . . Trap Hack Attempts . | . . . . Triggered . | . . . . Disarmed . | . . . . Reprogrammed . | . . . . Reused . | . . . . Traps Extracted . | . . . . Installed . | . . . . Triggered . | . . . . Machines | -11 -10 -9 -8 ---------- Run | Yrd Mat Mat Mat Machines Disabled 3 | . . . 3 Max in Single Turn 2 | . . . 2 Machines Repaired . | . . . . Machines Dismantled . | . . . . Machines Sabotaged . | . . . . Overloaded Fab Kills . | . . . . Hacking | -11 -10 -9 -8 --------- Run | Yrd Mat Mat Mat Machines Accessed 5 | . 2 3 . Terminals 4 | . 2 2 . Fabricators . | . . . . Repair Stations . | . . . . Recycling Units . | . . . . Scanalyzers 1 | . . 1 . Garrison Access . | . . . . Total Hacks 7 | . 3 4 . Successful 2 | . 1 1 . Failed 5 | . 2 3 . Catastrophic 1 | . . 1 . Database Lockouts . | . . . . Manual 1 | . . 1 . Terminals 6 | . 3 3 . Fabricators . | . . . . Repair Stations . | . . . . Recycling Units . | . . . . Scanalyzers 1 | . . 1 . Garrison Access . | . . . . Terminal Hacks 1 | . 1 . . Zone Layout 1 | . 1 . . Fabricator Hacks . | . . . . Repair Station Hacks . | . . . . Recycling Unit Hacks . | . . . . Scanalyzer 1 | . . 1 . Insert Component 1 | . . 1 . Garrison Access Hacks . | . . . . Unauthorized Hacks . | . . . . Terminals . | . . . . Fabricators . | . . . . Repair Stations . | . . . . Recycling Units . | . . . . Scanalyzers . | . . . . Garrison Access . | . . . . Data Cores Recovered . | . . . . Used . | . . . . Hacking Detections 4 | . 2 2 . Full Trace Events . | . . . . Feedback Events . | . . . . Feedback Blocked . | . . . . Robot Schematics Acquired . | . . . . Robots Built . | . . . . Authchips . | . . . . Time . | . . . . Total Robot Build Rating . | . . . . Part Schematics Acquired . | . . . . Parts Built . | . . . . Authchips . | . . . . Time . | . . . . Total Part Build Rating . | . . . . Parts Repaired . | . . . . Time . | . . . . Parts Recycled . | . . . . Recycled Matter . | . . . . Retrieved Matter . | . . . . Retrieved Components . | . . . . Parts Scanalyzed . | . . . . Part Schematics Acquired . | . . . . Parts Damaged . | . . . . Bothacking | -11 -10 -9 -8 ------------ Run | Yrd Mat Mat Mat Used RIF Installer . | . . . . Robots Hacked . | . . . . Non-combat . | . . . . Combat . | . . . . Robot Hacks Applied . | . . . . Relay Couplers Released . | . . . . Fabnet Peak Effective % . | . . . . Robots Rewired . | . . . . Allies Hacked . | . . . . Hacks Repelled . | . . . . Allies | -11 -10 -9 -8 -------- Run | Yrd Mat Mat Mat Total Allies . | . . . . Largest Group . | . . . . Highest-Rated Group . | . . . . Highest-Rated Ally . | . . . . Total Orders . | . . . . Ally Attacks . | . . . . Total Damage . | . . . . Kills . | . . . . Allies Corrupted . | . . . . Allies Melted . | . . . . Intel | -11 -10 -9 -8 ------- Run | Yrd Mat Mat Mat Robot Analysis Total . | . . . . Derelict Logs Recovered . | . . . . Drone Launches . | . . . . Drone Recoveries . | . . . . Exploration | -11 -10 -9 -8 ------------- Run | Yrd Mat Mat Mat Turns Passed 1615 | 55 541 778 241 Spaces Moved 740 | 44 284 308 104 Core 31 | 17 . . 14 Treads . | . . . . Legs 709 | 27 284 308 90 Wheels . | . . . . Hover . | . . . . Flight . | . . . . Fastest Speed 50 | 50 120 120 50 Average Speed 118 | 92 120 121 118 Slowest Speed 400 | 120 120 190 400 Overloaded Moves . | . . . . Propulsion Burnouts . | . . . . Robots Hopped . | . . . . Cave-ins Triggered . | . . . . Exploration Rate (%) 22 | 4 45 26 13 Regions Visited 3 Branch Regions . Pre-discovered Areas . | . . . . Known Exits Taken . | . . . . Unknown Exits Taken 3 | 1 1 1 . Scrap Searched . | . . . . Spaces Dug . | . . . . Terrain Destroyed 46 | . . . 46 Melee . | . . . . Projectile . | . . . . AOE 46 | . . . 46 Terrain Rammed . | . . . . Walls Destroyed . | . . . . Machines Disabled . | . . . . Actions | -11 -10 -9 -8 --------- Run | Yrd Mat Mat Mat Total 1325 | 58 457 640 170 Wait 436 | 1 156 263 16 Move 737 | 43 283 307 104 Hop . | . . . . Pick Up 33 | 8 3 14 8 Fast Attach . | . . . . Attach 25 | 6 1 7 11 Detach 2 | . . 2 . Swap 1 | . . 1 . Drop 7 | . . 7 . Fire 79 | . 14 39 26 Melee 5 | . . . 5 Ram . | . . . . Kick . | . . . . Crush . | . . . . Escape Stasis . | . . . . Rewire . | . . . . Trap . | . . . . Miscellaneous . | . . . . Route ------- -11/Scrapyard -10/Materials -9/Materials -8/Materials History --------- Turn | Location | Event 6 | -11/Scrapyard | Discovered new exit (range 16) 56 | -11/Scrapyard | Entered Materials 303 | -10/Materials | Build established: Mutant 592 | -10/Materials | Discovered new exit (range 3) 597 | -10/Materials | Entered another Materials area 597 | -9/Materials | Evolved 2 slots: Propulsion x2 1088 | -9/Materials | Build established: Scavenger-Mutant 1369 | -9/Materials | Discovered new exit (range 4) 1375 | -9/Materials | Entered another Materials area 1375 | -8/Materials | Evolved 2 slots: Utility x1, Weapon x1 1593 | -8/Materials | Core integrity fell below 50% 1607 | -8/Materials | Core integrity fell below 20% 1616 | -8/Materials | Destroyed by G-50 Soldier with Heavy Laser Last Messages --------------- 01586_ Power failure, Nuclear Core shutdown. 01586_ Acquired 114 matter. 01586_ Hvy. Particle Cannon destroyed. 01586_ Critical hit (Burn: +37). 01586_ Broken Minigun destroyed. 01588_ Nuclear Core destroyed. 01589_ K-01 Serf collects debris. 01591_ Overheating: Matter decay (-54). 01591_ Acquired Hammer. 01592_ K-01 Serf collects debris. 01592_ Sml. Storage Unit destroyed. 01592_ Critical hit (Burn: +37). 01593_ Acquired Aluminum Leg. 01595_ K-01 Serf collects debris. 01603_ Critical hit (Burn: +37). 01604_ Broken Mni. Grenade Launcher destroyed. 01605_ Aluminum Leg destroyed. 01605_ K-01 Serf collects debris. 01612_ Sneak attack on A-02 Transporter. 01616_ Critical hit (Burn: +37). Map ----- +----------------------------------------------------+ | ?????????????????????????????????????????????????? | | ?????????????????????????????????????????????????? | | ?????????????????????????????????????????????????? | | ?????????????????????????????????????????????????? | | ?????????????????????????????????????????????????? | | ?????????????????????????????????????????????????? | | ??????????????????????????????????????????????#### | | ????????????????????????????????????????????### # | | ????????????????????????????????????????????# | | ??????????????????????????????????????????### | | ??????????????????????????????????????????# | | ??????????????????????????????????????????# # | | ??????????????????????????????????????????# | | ??????????????????????????????????????????## | | ??????????????????????????????????????????# # | | ??????????????????????????????????????????## | | ??????????????????????????????????????????# | | ??????????????????????????????????????????# | | ??????????????????????????????????????????# | | ??????????????????????????????????????????### # | | ????????????????????????????????????????????### | | ????????????????????????????????????????????# | | ????????????????????????????????????????????# | | ????????????????????????????????????????????# | | ?????????# #####+###########################+ | | ?????? @ ^^ | | ?????? u t g a g ^ | | ?????? gg gg! | | ????????######+#### ######/######/############## | | ??????????????????# ????? ?# % #?????????? | | ??????????????????# ????? """# "" #?????????? | | ??????????????????#????? """# " !*#?????????? | | ???????????????????????# ] """# "" /#?????????? | | ???????????????????????# # %= #?????????? | | ???????????????????????# """# [ #?????????? | | ???????????????????????# """########?????????? | | ???????????????????????? ""??????????????????? | | ???????????????????????# ??????????????????? | | ???????????????????????#######???????????????????? | | ?????????????????????????????????????????????????? | | ?????????????????????????????????????????????????? | | ?????????????????????????????????????????????????? | | ?????????????????????????????????????????????????? | | ?????????????????????????????????????????????????? | | ?????????????????????????????????????????????????? | | ?????????????????????????????????????????????????? | | ?????????????????????????????????????????????????? | | ?????????????????????????????????????????????????? | | ?????????????????????????????????????????????????? | | ?????????????????????????????????????????????????? | +----------------------------------------------------+ Best States ------------- Heat Dissipation 31 Energy Generation 14 Energy Capacity 265 Matter Stores 300 Matter Capacity 300 Sight Range 20 Robot Scan Range 14 Terrain Scan Density 10 Evasion (%) 55 Targeting Accuracy 5 Item Schematics ----------------- None Robot Schematics ------------------ None Fabricated ------------ Nothing Alien Tech Used ----------------- None Achievements -------------- None Challenges ------------ None Game ------ Seed ScrapoidLaserMask Manual? 0 Play Time 00:21:25 Cumulative 5.6 hours Start 2025.03.29 @ 22:22:11 End 2025.03.29 @ 22:47:31 Sessions 1 Manual Loads 0 Difficulty Rogue Special Mode None Game No. 5 Rogue 5 Adventurer 0 Explorer 0 Win Type - Total 0 Types 0/0/0/0/0/0/0/0/0 Lore% 9 Gallery% 11 Achievement% 13 Wizard Run 0 Options --------- Layout 1 ASCII 0 Keyboard 0 Movement Mouse Keybinds 0 Fullscreen 2 Font 32/SmallcapsGlow Map View 50x35 Zoom Use 0% Tactical HUD 1 Map Filters NONE Filters NONE Steam 1 RUN: a47a3271-e7ef-44af-8a39-150d2dbfb98a